[Event "Djerba Festival Blitz 2025"]
[Site "Djerba"]
[Date "2025.02.21"]
[Round "2.2"]
[White "Messala, Noureddine"]
[Black "Moussard, Jules"]
[Result "0-1"]
[ECO "E94"]
[WhiteElo "2069"]
[BlackElo "2595"]
[PlyCount "76"]
[EventDate "2025.02.15"]
[EventType "swiss"]
[EventCountry "TUN"]
[TimeControl "180+3"]

1. d4 {[%emt 0:00:07]} Nf6 {[%emt 0:00:04]} 2. Nf3 {[%emt 0:00:03]} g6 {[%emt 0:00:02]} 3. c4 {[%emt 0:00:09]} Bg7 {[%emt 0:00:04]} 4. Nc3 {[%emt 0:00:03]} O-O {[%emt 0:00:02]} 5. e4 {[%emt 0:00:08]} d6 {[%emt 0:00:02]} 6. Be2 {[%emt 0:00:02]} Na6 {[%emt 0:00:04]} 7. O-O {[%emt 0:00:12]} e5 {[%emt 0:00:02]} 8. dxe5 {[%emt 0:00:48]} dxe5 {[%emt 0:00:03]} 9. Qxd8 {[%emt 0:00:03]} Rxd8 {[%emt 0:00:02]} 10. Bg5 {[%emt 0:00:02]} h6 {[%emt 0:00:11]} 11. Bxf6 {[%emt 0:00:41]} Bxf6 {[%emt 0:00:02]} 12. Nd5 {[%emt 0:00:31]} Bg7 {[%emt 0:00:03]} 13. Rfd1 {[%emt 0:00:46]} Be6 {[%emt 0:00:02]} 14. Ne1 {[%emt 0:00:06]} c6 {[%emt 0:00:07]} 15. Ne3 {[%emt 0:00:03]} h5 {[%emt 0:00:04]} 16. f3 {[%emt 0:00:01]} Bh6 {[%emt 0:00:19]} 17. Kf2 {[%emt 0:00:02]} Kg7 {[%emt 0:00:36]} 18. b3 {[%emt 0:00:01]} f5 {[%emt 0:00:02]} 19. Rxd8 {[%emt 0:00:03]} Rxd8 {[%emt 0:00:02]} 20. Rd1 {[%emt 0:00:02]} Rxd1 {[%emt 0:00:06]} 21. Bxd1 {[%emt 0:00:04]} Kf6 {[%emt 0:00:04]} 22. Nd3 {[%emt 0:00:06]} f4 {[%emt 0:00:09]} 23. Nc2 {[%emt 0:00:05]} Bf8 {[%emt 0:00:02]} 24. a3 {[%emt 0:00:04]} g5 {[%emt 0:00:08]} 25. g3 {[%emt 0:00:01]} fxg3+ {[%emt 0:00:24]} 26. hxg3 {[%emt 0:00:02]} h4 {[%emt 0:00:01]} 27. gxh4 {[%emt 0:00:06]} gxh4 {[%emt 0:00:03]} 28. Ncb4 {[%emt 0:00:02]} Nc5 {[%emt 0:00:10]} 29. Nxc5 {[%emt 0:00:03]} Bxc5+ {[%emt 0:00:02]} 30. Kg2 {[%emt 0:00:03]} Bxb4 {[%emt 0:00:08]} 31. axb4 {[%emt 0:00:02]} Kg5 {[%emt 0:00:01]} 32. Be2 {[%emt 0:00:05]} Kf4 {[%emt 0:00:05]} 33. Kf2 {[%emt 0:00:02]} b6 {[%emt 0:00:09]} 34. Bf1 {[%emt 0:00:03]} c5 {[%emt 0:00:10]} 35. b5 {[%emt 0:00:03]} h3 {[%emt 0:00:05]} 36. Be2 {[%emt 0:00:07]} h2 {[%emt 0:00:18]} 37. Kg2 {[%emt 0:00:00]} Ke3 {[%emt 0:00:01]} 38. Bf1 {[%emt 0:00:02]} Bh3+ {[%emt 0:00:04]} 0-1

[Event "Djerba Festival Blitz 2025"]
[Site "Djerba"]
[Date "2025.02.21"]
[Round "2.3"]
[White "Dardha, Daniel"]
[Black "Doucet, Pierre-Alois"]
[Result "1-0"]
[ECO "A00"]
[WhiteElo "2652"]
[BlackElo "2027"]
[PlyCount "53"]
[EventDate "2025.02.15"]
[EventType "swiss"]
[EventCountry "TUN"]
[TimeControl "180+3"]

1. h4 {[%emt 0:00:05]} h6 {[%emt 0:00:03]} 2. e4 {[%emt 0:00:02]} c6 {[%emt 0:00:06]} 3. d4 {[%emt 0:00:04]} d5 {[%emt 0:00:02]} 4. Nc3 {[%emt 0:00:06]} dxe4 {[%emt 0:00:13]} 5. Nxe4 {[%emt 0:00:02]} Bf5 {[%emt 0:00:01]} 6. Ng3 {[%emt 0:00:02]} Bh7 {[%emt 0:00:02]} 7. Nf3 {[%emt 0:00:03]} Nf6 {[%emt 0:00:03]} 8. Bd3 {[%emt 0:00:05]} e6 {[%emt 0:00:03]} 9. Bxh7 {[%emt 0:00:03]} Nxh7 {[%emt 0:00:03]} 10. Be3 {[%emt 0:00:06]} Bd6 {[%emt 0:00:03]} 11. Qd3 {[%emt 0:00:04]} Nf6 {[%emt 0:00:06]} 12. O-O-O {[%emt 0:00:03]} Qa5 {[%emt 0:00:05]} 13. Kb1 {[%emt 0:00:03]} Na6 {[%emt 0:00:04]} 14. a3 {[%emt 0:00:10]} b5 {[%emt 0:00:04]} 15. Ne4 {[%emt 0:00:04]} Nxe4 {[%emt 0:02:50]} 16. Qxe4 {[%emt 0:00:03]} O-O {[%emt 0:00:00]} 17. Ng5 {[%emt 0:00:05]} g6 {[%emt 0:00:00]} 18. h5 {[%emt 0:00:09]} Bxa3 {[%emt 0:00:00]} 19. hxg6 {[%emt 0:00:04]} Bxb2 {[%emt 0:00:00]} 20. Kxb2 {[%emt 0:00:21]} Qb4+ {[%emt 0:00:00]} 21. Kc1 {[%emt 0:00:02]} hxg5 {[%emt 0:00:00]} 22. g7 {[%emt 0:00:18]} Kxg7 {[%emt 0:00:00]} 23. Qh7+ {[%emt 0:00:07]} Kf6 {[%emt 0:00:00]} 24. Bxg5+ {[%emt 0:00:02]} Kxg5 {[%emt 0:00:00]} 25. Qg7+ {[%emt 0:00:02]} Kf4 {[%emt 0:00:08]} 26. Qf6+ {[%emt 0:00:05]} Ke4 {[%emt 0:00:02]} 27. Qe5# {[%emt 0:01:53] Kd5} 1-0

[Event "Djerba Festival Blitz 2025"]
[Site "Djerba"]
[Date "2025.02.21"]
[Round "2.4"]
[White "Ajbara Jamal"]
[Black "Edouard, Romain"]
[Result "0-1"]
[ECO "E61"]
[WhiteElo "1898"]
[BlackElo "2544"]
[PlyCount "74"]
[EventDate "2025.02.15"]
[EventType "swiss"]
[EventCountry "TUN"]
[TimeControl "180+3"]

1. d4 {[%emt 0:00:04]} Nf6 {[%emt 0:00:03]} 2. Nf3 {[%emt 0:00:02]} b6 {[%emt 0:00:02]} 3. c4 {[%emt 0:00:04]} Bb7 {[%emt 0:00:02]} 4. Nc3 {[%emt 0:00:04]} g6 {[%emt 0:00:04]} 5. Bg5 {[%emt 0:00:08]} Bg7 {[%emt 0:00:02]} 6. e3 {[%emt 0:00:03]} O-O {[%emt 0:00:05]} 7. Be2 {[%emt 0:00:02]} d6 {[%emt 0:00:08]} 8. O-O {[%emt 0:00:06]} Nbd7 {[%emt 0:00:03]} 9. h3 {[%emt 0:00:11]} e5 {[%emt 0:00:08]} 10. d5 {[%emt 0:00:13]} h6 {[%emt 0:00:14]} 11. Bh4 {[%emt 0:00:03]} Qe8 {[%emt 0:00:02]} 12. e4 {[%emt 0:00:08]} Nh5 {[%emt 0:00:06]} 13. Nb5 {[%emt 0:00:20]} Qc8 {[%emt 0:00:03]} 14. Ne1 {[%emt 0:00:21]} Nf4 {[%emt 0:00:04]} 15. Bg4 {[%emt 0:00:13]} f5 {[%emt 0:00:03]} 16. exf5 {[%emt 0:00:07]} gxf5 {[%emt 0:00:02]} 17. Bh5 {[%emt 0:00:20]} a6 {[%emt 0:00:07]} 18. Nc3 {[%emt 0:00:05]} Nf6 {[%emt 0:00:14]} 19. Bxf6 {[%emt 0:00:08]} Bxf6 {[%emt 0:00:03]} 20. Nd3 {[%emt 0:00:05]} Nxh5 {[%emt 0:00:06]} 21. Qxh5 {[%emt 0:00:03]} Kh7 {[%emt 0:00:02]} 22. Nd1 {[%emt 0:00:20]} Bg7 {[%emt 0:00:37]} 23. Kh2 {[%emt 0:00:22]} b5 {[%emt 0:00:13]} 24. b3 {[%emt 0:00:02]} bxc4 {[%emt 0:00:17]} 25. bxc4 {[%emt 0:00:03]} c6 {[%emt 0:00:02]} 26. dxc6 {[%emt 0:00:14]} Qxc6 {[%emt 0:00:04]} 27. Ne3 {[%emt 0:00:06]} f4 {[%emt 0:00:06]} 28. Nd5 {[%emt 0:00:02]} Qxc4 {[%emt 0:00:03]} 29. N5b4 {[%emt 0:00:16]} e4 {[%emt 0:00:07]} 30. Rac1 {[%emt 0:00:04]} Qf7 {[%emt 0:00:27]} 31. Qxf7 {[%emt 0:00:07]} Rxf7 {[%emt 0:00:02]} 32. Ne1 {[%emt 0:00:03]} d5 {[%emt 0:00:04]} 33. Rc5 {[%emt 0:00:04]} Bf8 {[%emt 0:00:06]} 34. Rxd5 {[%emt 0:00:07]} Bxb4 {[%emt 0:00:03]} 35. Rd4 {[%emt 0:00:04]} a5 {[%emt 0:00:12]} 36. Nc2 {[%emt 0:00:02]} Bc5 {[%emt 0:00:02]} 37. Rc4 {[%emt 0:00:02]} Ba6 {[%emt 0:00:02]} 0-1

[Event "Djerba Festival Blitz 2025"]
[Site "Djerba"]
[Date "2025.02.21"]
[Round "2.5"]
[White "Kobalia, Mikhail"]
[Black "Msalmi, Hamed"]
[Result "1-0"]
[ECO "B13"]
[WhiteElo "2538"]
[BlackElo "1747"]
[PlyCount "81"]
[EventDate "2025.02.15"]
[EventType "swiss"]
[EventCountry "TUN"]
[TimeControl "180+3"]

1. e4 {[%emt 0:00:03]} c6 {[%emt 0:00:05]} 2. d4 {[%emt 0:00:03]} d5 {[%emt 0:00:02]} 3. exd5 {[%emt 0:00:01]} cxd5 {[%emt 0:00:02]} 4. Bd3 {[%emt 0:00:02]} Nf6 {[%emt 0:00:04]} 5. c3 {[%emt 0:00:02]} g6 {[%emt 0:00:02]} 6. Nf3 {[%emt 0:00:03]} Bg4 {[%emt 0:00:03]} 7. Nbd2 {[%emt 0:00:03]} Nc6 {[%emt 0:00:12]} 8. h3 {[%emt 0:00:02]} Bxf3 {[%emt 0:00:03]} 9. Nxf3 {[%emt 0:00:01]} Bg7 {[%emt 0:00:03]} 10. O-O {[%emt 0:00:03]} O-O {[%emt 0:00:03]} 11. Bf4 {[%emt 0:00:01]} a6 {[%emt 0:00:18]} 12. a4 {[%emt 0:00:04]} Ne4 {[%emt 0:00:10]} 13. Ng5 {[%emt 0:00:28]} Nxg5 {[%emt 0:00:10]} 14. Bxg5 {[%emt 0:00:03]} Qc7 {[%emt 0:00:04]} 15. Re1 {[%emt 0:00:05]} Rfe8 {[%emt 0:00:03]} 16. Bc2 {[%emt 0:00:14]} Rac8 {[%emt 0:00:14]} 17. Qd3 {[%emt 0:00:16]} Nxd4 {[%emt 0:02:16]} 18. Bd1 {[%emt 0:00:36]} Ne6 {[%emt 0:00:00]} 19. Be3 {[%emt 0:00:36]} Qc4 {[%emt 0:00:00]} 20. Qd2 {[%emt 0:00:08]} Red8 {[%emt 0:00:00]} 21. Bg4 {[%emt 0:00:04]} Rc6 {[%emt 0:00:00]} 22. a5 {[%emt 0:00:11]} Nc7 {[%emt 0:00:00]} 23. Bb6 {[%emt 0:00:04]} e6 {[%emt 0:00:00]} 24. Qg5 {[%emt 0:00:16]} Re8 {[%emt 0:00:00]} 25. Be2 {[%emt 0:00:49]} Qe4 {[%emt 0:00:05]} 26. Bxa6 {[%emt 0:00:00]} Qxe1+ {[%emt 0:00:11]} 27. Rxe1 {[%emt 0:00:00]} Nxa6 {[%emt 0:00:03]} 28. Qd2 {[%emt 0:00:00]} Rec8 {[%emt 0:00:03]} 29. Qd3 {[%emt 0:00:00]} Nc5 {[%emt 0:00:03]} 30. Qb5 {[%emt 0:00:00]} Ne4 {[%emt 0:00:04]} 31. Ra1 {[%emt 0:00:00]} Nd6 {[%emt 0:00:04]} 32. Qe2 {[%emt 0:00:00]} Nc4 {[%emt 0:00:02]} 33. Bd4 {[%emt 0:00:00]} e5 {[%emt 0:00:03]} 34. Be3 {[%emt 0:00:00]} f6 {[%emt 0:00:03]} 35. Bc1 {[%emt 0:00:01]} Nd6 {[%emt 0:00:03]} 36. Qd3 {[%emt 0:00:03]} Rc5 {[%emt 0:00:06]} 37. Be3 {[%emt 0:00:03]} d4 {[%emt 0:00:03]} 38. cxd4 {[%emt 0:00:03]} e4 {[%emt 0:00:05]} 39. Qb3+ {[%emt 0:00:03]} Rc4 {[%emt 0:00:02]} 40. Bf4 {[%emt 0:00:04]} Bf8 {[%emt 0:00:04]} 41. a6 {[%emt 0:00:06]} 1-0

[Event "Djerba Festival Blitz 2025"]
[Site "Djerba"]
[Date "2025.02.21"]
[Round "2.6"]
[White "MEZGOURI NOUREDDINE"]
[Black "Maurizzi, Marc`Andria"]
[Result "0-1"]
[ECO "A01"]
[WhiteElo "1891"]
[BlackElo "2581"]
[PlyCount "65"]
[EventDate "2025.02.15"]
[EventType "swiss"]
[EventCountry "TUN"]
[TimeControl "180+3"]

1. b3 {[%emt 0:00:04]} e5 {[%emt 0:00:03]} 2. Bb2 {[%emt 0:00:03]} Nc6 {[%emt 0:00:02]} 3. g3 {[%emt 0:00:02]} d5 {[%emt 0:00:02]} 4. Bg2 {[%emt 0:00:02]} Nf6 {[%emt 0:00:01]} 5. h3 {[%emt 0:00:03]} Bc5 {[%emt 0:00:06]} 6. e3 {[%emt 0:00:03]} a5 {[%emt 0:00:03]} 7. Ne2 {[%emt 0:00:03]} Bb6 {[%emt 0:00:02]} 8. d4 {[%emt 0:00:03]} e4 {[%emt 0:00:05]} 9. Nd2 {[%emt 0:00:02]} Ne7 {[%emt 0:00:03]} 10. c4 {[%emt 0:00:03]} c6 {[%emt 0:00:01]} 11. Ba3 {[%emt 0:00:14]} O-O {[%emt 0:00:04]} 12. O-O {[%emt 0:00:05]} Re8 {[%emt 0:00:02]} 13. Rc1 {[%emt 0:00:17]} Ng6 {[%emt 0:00:05]} 14. Nc3 {[%emt 0:00:13]} Be6 {[%emt 0:00:02]} 15. Na4 {[%emt 0:00:09]} Ba7 {[%emt 0:00:02]} 16. cxd5 {[%emt 0:00:16]} cxd5 {[%emt 0:00:02]} 17. Nc5 {[%emt 0:00:06]} Bxc5 {[%emt 0:00:03]} 18. Bxc5 {[%emt 0:00:05]} Qd7 {[%emt 0:00:01]} 19. Kh2 {[%emt 0:00:03]} h6 {[%emt 0:00:13]} 20. Nb1 {[%emt 0:00:09]} Nh7 {[%emt 0:00:04]} 21. Nc3 {[%emt 0:00:18]} Ng5 {[%emt 0:00:03]} 22. Na4 {[%emt 0:00:11]} Bxh3 {[%emt 0:00:02]} 23. Rh1 {[%emt 0:00:25]} Bg4 {[%emt 0:00:03]} 24. Qc2 {[%emt 0:00:19]} Nf3+ {[%emt 0:00:03]} 25. Bxf3 {[%emt 0:00:14]} Bxf3 {[%emt 0:00:03]} 26. Kg1 {[%emt 0:00:34]} Bxh1 {[%emt 0:00:04]} 27. Kxh1 {[%emt 0:00:03]} Rac8 {[%emt 0:00:03]} 28. Qe2 {[%emt 0:00:03]} Rc6 {[%emt 0:00:02]} 29. Kg2 {[%emt 0:00:06]} Qf5 {[%emt 0:00:02]} 30. Rh1 {[%emt 0:00:06]} Rf6 {[%emt 0:00:02]} 31. Rh5 {[%emt 0:00:06]} Qe6 {[%emt 0:00:04]} 32. Nb6 {[%emt 0:00:05]} Rd8 {[%emt 0:00:02]} 33. Rh2 {[%emt 0:00:07]} 0-1

[Event "Djerba Festival Blitz 2025"]
[Site "Djerba"]
[Date "2025.02.21"]
[Round "2.7"]
[White "Oro, Faustino"]
[Black "Zouaghi, Ahmed"]
[Result "1-0"]
[ECO "A57"]
[WhiteElo "2447"]
[BlackElo "1919"]
[PlyCount "127"]
[EventDate "2025.02.15"]
[EventType "swiss"]
[EventCountry "TUN"]
[TimeControl "180+3"]

1. d4 {[%emt 0:00:04]} Nf6 {[%emt 0:00:03]} 2. c4 {[%emt 0:00:03]} c5 {[%emt 0:00:02]} 3. d5 {[%emt 0:00:03]} b5 {[%emt 0:00:01]} 4. cxb5 {[%emt 0:00:02]} a6 {[%emt 0:00:02]} 5. b6 {[%emt 0:00:02]} Qxb6 {[%emt 0:00:07]} 6. Nc3 {[%emt 0:00:03]} d6 {[%emt 0:00:08]} 7. e4 {[%emt 0:00:04]} g6 {[%emt 0:00:02]} 8. Nf3 {[%emt 0:00:02]} Bg7 {[%emt 0:00:02]} 9. h3 {[%emt 0:00:04]} O-O {[%emt 0:00:04]} 10. Be2 {[%emt 0:03:06]} Nbd7 {[%emt 0:00:14]} 11. O-O {[%emt 0:00:00]} Qc7 {[%emt 0:00:17]} 12. Nd2 {[%emt 0:00:00]} Rb8 {[%emt 0:00:08]} 13. Qc2 {[%emt 0:00:00]} Nb6 {[%emt 0:00:08]} 14. b3 {[%emt 0:00:00]} e6 {[%emt 0:00:10]} 15. dxe6 {[%emt 0:00:00]} Bxe6 {[%emt 0:00:02]} 16. Bb2 {[%emt 0:00:00]} c4 {[%emt 0:00:16]} 17. b4 {[%emt 0:00:00]} d5 {[%emt 0:00:28]} 18. exd5 {[%emt 0:00:00]} Nbxd5 {[%emt 0:00:08]} 19. Nxd5 Nxd5 {[%emt 0:00:03]} 20. Bxg7 {[%emt 0:00:00]} Kxg7 {[%emt 0:00:02]} 21. a3 {[%emt 0:00:00]} c3 {[%emt 0:00:26]} 22. Nb3 {[%emt 0:00:00]} Bf5 {[%emt 0:00:15]} 23. Bd3 {[%emt 0:00:00]} Bxd3 {[%emt 0:00:07]} 24. Qxd3 {[%emt 0:00:00]} Rfd8 {[%emt 0:00:21]} 25. Qxa6 {[%emt 0:00:00]} Qf4 {[%emt 0:00:27]} 26. Nc5 {[%emt 0:00:00]} c2 {[%emt 0:00:13]} 27. Qd3 {[%emt 0:00:00]} Rbc8 {[%emt 0:00:04]} 28. Qxc2 {[%emt 0:00:00]} Qe5 {[%emt 0:00:04]} 29. Rfe1 {[%emt 0:00:00]} Qg5 {[%emt 0:00:02]} 30. Qe4 {[%emt 0:00:00]} Nf4 {[%emt 0:00:07]} 31. Qe5+ {[%emt 0:00:00]} Qxe5 {[%emt 0:00:00]} 32. Rxe5 {[%emt 0:00:00]} f6 {[%emt 0:00:03]} 33. Re7+ {[%emt 0:00:00]} Kh6 {[%emt 0:00:06]} 34. g3 {[%emt 0:00:00]} Nd5 {[%emt 0:00:00]} 35. Rb7 {[%emt 0:00:01]} Ra8 {[%emt 0:00:00]} 36. a4 {[%emt 0:00:05]} Rdc8 {[%emt 0:00:04]} 37. Nd7 {[%emt 0:00:26]} Rc4 {[%emt 0:00:04]} 38. a5 {[%emt 0:00:03]} Rxb4 {[%emt 0:00:02]} 39. Rxb4 {[%emt 0:00:02]} Nxb4 {[%emt 0:00:02]} 40. Nxf6 {[%emt 0:00:02]} Kg7 {[%emt 0:00:04]} 41. Ne4 {[%emt 0:00:04]} Ra6 {[%emt 0:00:05]} 42. Nc5 {[%emt 0:00:02]} Ra7 {[%emt 0:00:02]} 43. Ra4 {[%emt 0:00:03]} Na6 {[%emt 0:00:02]} 44. Nxa6 Rxa6 {[%emt 0:00:02]} 45. Kg2 {[%emt 0:00:04]} Kf6 {[%emt 0:00:02]} 46. Kf3 {[%emt 0:00:02]} h6 {[%emt 0:00:02]} 47. Ke4 {[%emt 0:00:02]} Ke6 {[%emt 0:00:02]} 48. Kd4 {[%emt 0:00:03]} Kd6 {[%emt 0:00:03]} 49. Kc4 {[%emt 0:00:02]} Kc6 {[%emt 0:00:02]} 50. Ra1 {[%emt 0:00:02]} g5 {[%emt 0:00:05]} 51. Kb4 {[%emt 0:00:02]} h5 {[%emt 0:00:05]} 52. Re1 {[%emt 0:00:03]} Kd5 {[%emt 0:00:03]} 53. f4 {[%emt 0:00:07]} gxf4 {[%emt 0:00:03]} 54. gxf4 {[%emt 0:00:02]} Ra8 {[%emt 0:00:02]} 55. Re5+ {[%emt 0:00:03]} Kd6 {[%emt 0:00:04]} 56. Rxh5 {[%emt 0:00:02]} Rb8+ {[%emt 0:00:02]} 57. Rb5 {[%emt 0:00:03]} Ra8 {[%emt 0:00:05]} 58. f5 {[%emt 0:00:02]} Ke7 {[%emt 0:00:03]} 59. Rb6 {[%emt 0:00:02]} Kf7 {[%emt 0:00:03]} 60. a6 {[%emt 0:00:02]} Rc8 {[%emt 0:00:04]} 61. Kb5 {[%emt 0:00:04]} Rc1 {[%emt 0:00:03]} 62. a7 {[%emt 0:00:02]} Rb1+ {[%emt 0:00:02]} 63. Kc6 {[%emt 0:00:02]} Rc1+ {[%emt 0:00:02]} 64. Kb7 {[%emt 0:00:02]} 1-0

[Event "Djerba Festival Blitz 2025"]
[Site "Djerba"]
[Date "2025.02.21"]
[Round "2.9"]
[White "Stopa, Jacek"]
[Black "Chelly, Yahya"]
[Result "1-0"]
[ECO "D35"]
[WhiteElo "2310"]
[BlackElo "2106"]
[PlyCount "136"]
[EventDate "2025.02.15"]
[EventType "swiss"]
[EventCountry "TUN"]
[TimeControl "180+3"]

1. d4 {[%emt 0:00:03]} d5 {[%emt 0:00:02]} 2. c4 {[%emt 0:00:02]} e6 {[%emt 0:00:02]} 3. Nc3 {[%emt 0:00:02]} Nf6 {[%emt 0:00:02]} 4. cxd5 {[%emt 0:00:02]} exd5 {[%emt 0:00:04]} 5. Bg5 {[%emt 0:00:02]} Be7 {[%emt 0:00:02]} 6. e3 {[%emt 0:00:02]} c6 {[%emt 0:00:02]} 7. Bd3 {[%emt 0:00:02]} O-O {[%emt 0:00:06]} 8. Nge2 {[%emt 0:00:09]} h6 {[%emt 0:00:02]} 9. Bh4 {[%emt 0:00:01]} Re8 {[%emt 0:00:02]} 10. O-O {[%emt 0:00:07]} Nbd7 {[%emt 0:00:34]} 11. f3 {[%emt 0:00:14]} c5 {[%emt 0:00:06]} 12. Bf2 {[%emt 0:00:08]} cxd4 {[%emt 0:00:12]} 13. Nxd4 {[%emt 0:00:14]} a6 {[%emt 0:00:11]} 14. Qd2 {[%emt 0:00:23]} Ne5 {[%emt 0:00:20]} 15. Rad1 {[%emt 0:00:12]} Bf8 {[%emt 0:00:14]} 16. Rfe1 {[%emt 0:00:10]} b5 {[%emt 0:00:10]} 17. Bb1 {[%emt 0:00:04]} Nc4 {[%emt 0:00:06]} 18. Qc2 {[%emt 0:00:04]} Bb7 {[%emt 0:00:18]} 19. Nf5 {[%emt 0:00:16]} Rc8 {[%emt 0:00:35]} 20. a3 {[%emt 0:00:02]} a5 {[%emt 0:00:08]} 21. Qb3 {[%emt 0:00:25]} b4 {[%emt 0:00:16]} 22. axb4 {[%emt 0:00:03]} axb4 {[%emt 0:00:02]} 23. Ne2 {[%emt 0:00:07]} g6 {[%emt 0:00:04]} 24. Nfd4 {[%emt 0:00:09]} Qb6 {[%emt 0:00:04]} 25. Nf4 {[%emt 0:00:09]} Bc5 {[%emt 0:00:18]} 26. Nd3 {[%emt 0:00:07]} Nxe3 {[%emt 0:00:07]} 27. Nxc5 {[%emt 0:00:16]} Nxd1 {[%emt 0:00:04]} 28. Rxd1 {[%emt 0:00:24]} Qxc5 {[%emt 0:00:05]} 29. Nf5 {[%emt 0:00:04]} Qf8 {[%emt 0:00:03]} 30. Bd4 {[%emt 0:00:30]} Re6 {[%emt 0:00:05]} 31. Ng3 {[%emt 0:00:00]} Kg7 {[%emt 0:00:05]} 32. Qd3 {[%emt 0:00:00]} Rcc6 {[%emt 0:00:04]} 33. Nh5+ {[%emt 0:00:00]} Kh8 {[%emt 0:00:07]} 34. Nxf6 {[%emt 0:00:00]} Rxf6 {[%emt 0:00:00]} 35. Qe3 {[%emt 0:00:01]} Kg7 {[%emt 0:00:01]} 36. Qf4 {[%emt 0:00:02]} Qe7 {[%emt 0:00:03]} 37. Qg3 {[%emt 0:00:04]} Rc4 {[%emt 0:00:03]} 38. Be5 {[%emt 0:00:04]} d4 {[%emt 0:00:04]} 39. Qf4 {[%emt 0:00:05]} Rcc6 {[%emt 0:00:02]} 40. Qxd4 {[%emt 0:00:02]} Rce6 {[%emt 0:00:04]} 41. Bxf6+ Qxf6 {[%emt 0:00:03]} 42. Qxb4 {[%emt 0:00:07]} Rb6 {[%emt 0:00:02]} 43. Qc3 {[%emt 0:00:03]} Qxc3 {[%emt 0:00:04]} 44. bxc3 {[%emt 0:00:01]} Rc6 {[%emt 0:00:03]} 45. Be4 {[%emt 0:00:16]} Rc7 46. Bxb7 {[%emt 0:00:00]} Rxb7 {[%emt 0:00:03]} 47. Rd2 {[%emt 0:00:00]} Rc7 {[%emt 0:00:03]} 48. Rc2 {[%emt 0:00:00]} Kf6 {[%emt 0:00:02]} 49. Kf2 {[%emt 0:00:00]} Ke5 {[%emt 0:00:01]} 50. Ke3 {[%emt 0:00:00]} Rc4 {[%emt 0:00:04]} 51. g3 {[%emt 0:00:00]} g5 {[%emt 0:00:06]} 52. Kd3 {[%emt 0:00:02]} Rc7 {[%emt 0:00:02]} 53. Re2+ {[%emt 0:00:03]} Kf5 {[%emt 0:00:03]} 54. c4 {[%emt 0:00:02]} g4 {[%emt 0:00:04]} 55. f4 {[%emt 0:00:04]} Rd7+ {[%emt 0:00:05]} 56. Kc3 {[%emt 0:00:02]} f6 {[%emt 0:00:02]} 57. Rd2 {[%emt 0:00:02]} Rc7 {[%emt 0:00:01]} 58. Rd5+ {[%emt 0:00:01]} Ke4 {[%emt 0:00:02]} 59. Rh5 {[%emt 0:00:03]} Kf3 {[%emt 0:00:05]} 60. Rxh6 Rc6 {[%emt 0:00:09]} 61. Kd4 {[%emt 0:00:04]} Rd6+ {[%emt 0:00:00]} 62. Kc5 {[%emt 0:00:02]} Rd2 {[%emt 0:00:00]} 63. Kb6 {[%emt 0:00:06]} Rc2 {[%emt 0:00:02]} 64. c5 {[%emt 0:00:02]} Kg2 {[%emt 0:00:03]} 65. c6 {[%emt 0:00:02]} Rb2+ {[%emt 0:00:05]} 66. Kc7 {[%emt 0:00:03]} f5 {[%emt 0:00:04]} 67. Kd7 {[%emt 0:00:02]} Rd2+ {[%emt 0:00:02]} 68. Kc8 {[%emt 0:00:08]} Rc2 {[%emt 0:00:05]} 1-0

[Event "Djerba Festival Blitz 2025"]
[Site "Djerba"]
[Date "2025.02.21"]
[Round "2.10"]
[White "Zenaidi, Sadok"]
[Black "Njili, Kamel"]
[Result "0-1"]
[ECO "B96"]
[WhiteElo "1872"]
[BlackElo "2406"]
[PlyCount "77"]
[EventDate "2025.02.15"]
[EventType "swiss"]
[EventCountry "TUN"]
[TimeControl "180+3"]

1. e4 {[%emt 0:00:03]} c5 {[%emt 0:00:25]} 2. Nf3 {[%emt 0:00:03]} d6 {[%emt 0:00:05]} 3. d4 {[%emt 0:00:01]} cxd4 {[%emt 0:00:02]} 4. Nxd4 Nf6 5. Nc3 {[%emt 0:00:04]} a6 {[%emt 0:00:04]} 6. Bg5 {[%emt 0:00:03]} e6 {[%emt 0:00:04]} 7. f4 {[%emt 0:00:08]} Qc7 {[%emt 0:00:04]} 8. Qd2 {[%emt 0:00:15]} b5 {[%emt 0:00:05]} 9. Bd3 {[%emt 0:00:04]} Nbd7 {[%emt 0:00:06]} 10. O-O-O {[%emt 0:00:07]} b4 {[%emt 0:00:24]} 11. Nce2 {[%emt 0:00:05]} Bb7 {[%emt 0:00:09]} 12. Ng3 {[%emt 0:00:22]} Qb6 {[%emt 0:00:08]} 13. Nf3 {[%emt 0:00:15]} Ng4 {[%emt 0:00:18]} 14. Rde1 {[%emt 0:00:14]} h6 {[%emt 0:00:05]} 15. Bh4 {[%emt 0:00:03]} e5 {[%emt 0:00:29]} 16. Nf5 {[%emt 0:00:37]} g6 {[%emt 0:00:08]} 17. h3 {[%emt 0:00:05]} gxf5 {[%emt 0:00:08]} 18. hxg4 {[%emt 0:00:03]} fxg4 {[%emt 0:00:02]} 19. Nh2 {[%emt 0:00:13]} h5 {[%emt 0:00:03]} 20. Bf2 {[%emt 0:00:07]} Qc7 {[%emt 0:00:05]} 21. Nxg4 {[%emt 0:00:04]} Bg7 {[%emt 0:00:06]} 22. f5 {[%emt 0:00:02]} hxg4 {[%emt 0:00:03]} 23. Rxh8+ {[%emt 0:00:04]} Bxh8 {[%emt 0:00:02]} 24. Qxb4 {[%emt 0:00:34]} a5 {[%emt 0:00:17]} 25. Qd2 {[%emt 0:00:08]} Nc5 {[%emt 0:00:08]} 26. Bh4 {[%emt 0:00:07]} Rc8 {[%emt 0:00:11]} 27. Kb1 {[%emt 0:00:03]} Nxd3 28. Qxd3 {[%emt 0:00:02]} Qc4 {[%emt 0:00:14]} 29. Qd2 {[%emt 0:00:08]} Bxe4 {[%emt 0:00:03]} 30. Qg5 {[%emt 0:00:07]} Qxc2+ {[%emt 0:00:04]} 31. Ka1 {[%emt 0:00:01]} Kd7 {[%emt 0:00:05]} 32. Qe7+ {[%emt 0:00:18]} Kc6 {[%emt 0:00:02]} 33. Bg5 {[%emt 0:00:05]} f6 {[%emt 0:00:04]} 34. Rc1 {[%emt 0:00:04]} fxg5 {[%emt 0:00:03]} 35. Rxc2+ {[%emt 0:00:02]} Bxc2 {[%emt 0:00:02]} 36. Qxg5 {[%emt 0:00:04]} e4 {[%emt 0:00:02]} 37. Qd2 {[%emt 0:00:05]} Kd7 {[%emt 0:00:02]} 38. a3 {[%emt 0:00:04]} Bb3 {[%emt 0:00:04]} 39. Qe2 {[%emt 0:00:03]} 0-1